[Event "Early-Titled-Tuesday-Blitz-April-02-2024"]
[Site "Chess.com"]
[Date "2024.04.02"]
[Round "9"]
[White "EvgenyBurmakin"]
[Black "WilsonPalencia21"]
[Result "0-1"]
[WhiteElo "2357"]
[BlackElo "2566"]
[TimeControl "180+1"]
[EndTime "9:48:03 PDT"]
[Termination "WilsonPalencia21 won on time"]

1. e4 {[%clk 0:02:59]} 1... c5 {[%clk 0:02:53.3]} 2. Nc3 {[%clk 0:02:58.5]} 2...
Nc6 {[%clk 0:02:53.1]} 3. Bb5 {[%clk 0:02:58]} 3... Nd4 {[%clk 0:02:52.6]} 4.
Bc4 {[%clk 0:02:58]} 4... g6 {[%clk 0:02:50.7]} 5. Nf3 {[%clk 0:02:58.2]} 5...
Bg7 {[%clk 0:02:51]} 6. Nxd4 {[%clk 0:02:57.8]} 6... cxd4 {[%clk 0:02:51.9]} 7.
Qf3 {[%clk 0:02:58.3]} 7... Nh6 {[%clk 0:02:48.1]} 8. Ne2 {[%clk 0:02:50.3]}
8... O-O {[%clk 0:02:47.6]} 9. d3 {[%clk 0:02:44.6]} 9... Ng4 {[%clk 0:02:47.5]}
10. Bb3 {[%clk 0:02:41]} 10... d6 {[%clk 0:02:43.5]} 11. h3 {[%clk 0:02:36.4]}
11... Ne5 {[%clk 0:02:43]} 12. Qg3 {[%clk 0:02:36.3]} 12... a5 {[%clk
0:02:34.8]} 13. a4 {[%clk 0:02:35]} 13... Qb6 {[%clk 0:02:31.1]} 14. O-O {[%clk
0:02:24.8]} 14... Kh8 {[%clk 0:02:29.1]} 15. f4 {[%clk 0:02:23.5]} 15... Nc6
{[%clk 0:02:27.2]} 16. f5 {[%clk 0:02:19.8]} 16... Ne5 {[%clk 0:02:22.7]} 17.
Bg5 {[%clk 0:02:10]} 17... f6 {[%clk 0:02:14.9]} 18. Bd2 {[%clk 0:02:07.5]}
18... gxf5 {[%clk 0:02:09.7]} 19. exf5 {[%clk 0:02:01.6]} 19... Bd7 {[%clk
0:02:09.6]} 20. Rf4 {[%clk 0:01:50.4]} 20... Bh6 {[%clk 0:01:57.2]} 21. Raf1
{[%clk 0:01:34.6]} 21... Rg8 {[%clk 0:01:51.4]} 22. Qh4 {[%clk 0:01:16.2]} 22...
Bg5 {[%clk 0:01:46.1]} 23. Qf2 {[%clk 0:01:14.9]} 23... Rg7 {[%clk 0:01:44.9]}
24. Ng3 {[%clk 0:01:05.1]} 24... Bxf4 {[%clk 0:01:39.2]} 25. Bxf4 {[%clk
0:01:04.5]} 25... Bc6 {[%clk 0:01:38.6]} 26. Bh6 {[%clk 0:00:55.6]} 26... Rag8
{[%clk 0:01:24.3]} 27. Bxg7+ {[%clk 0:00:36.6]} 27... Rxg7 {[%clk 0:01:23.2]}
28. Kh2 {[%clk 0:00:37]} 28... Rg5 {[%clk 0:01:02.2]} 29. Rg1 {[%clk 0:00:34.5]}
29... Qc5 {[%clk 0:00:48.7]} 30. Ne2 {[%clk 0:00:32.8]} 30... Rxf5 {[%clk
0:00:21.1]} 31. Qxf5 {[%clk 0:00:20.9]} 31... Nf3+ {[%clk 0:00:20.6]} 32. Qxf3
{[%clk 0:00:20.3]} 32... Bxf3 {[%clk 0:00:20.6]} 33. gxf3 {[%clk 0:00:20.6]}
33... Qe5+ {[%clk 0:00:21.1]} 34. Kh1 {[%clk 0:00:18.8]} 34... e6 {[%clk
0:00:20.6]} 35. Ng3 {[%clk 0:00:15.7]} 35... d5 {[%clk 0:00:20.5]} 36. Kg2
{[%clk 0:00:14.6]} 36... Qf4 {[%clk 0:00:20]} 37. Rf1 {[%clk 0:00:14.4]} 37...
h6 {[%clk 0:00:19]} 38. Re1 {[%clk 0:00:11.1]} 38... e5 {[%clk 0:00:17.3]} 39.
Bxd5 {[%clk 0:00:11.1]} 39... Qd2+ {[%clk 0:00:17.1]} 40. Re2 {[%clk 0:00:11.3]}
40... Qc1 {[%clk 0:00:17.3]} 41. b3 {[%clk 0:00:11]} 41... Kh7 {[%clk
0:00:16.9]} 42. Be4+ {[%clk 0:00:10.8]} 42... Kg7 {[%clk 0:00:17.3]} 43. Nf5+
{[%clk 0:00:10.7]} 43... Kf8 {[%clk 0:00:16.7]} 44. Kh2 {[%clk 0:00:11]} 44...
Qf4+ {[%clk 0:00:16]} 45. Kg1 {[%clk 0:00:09.6]} 45... h5 {[%clk 0:00:16.2]} 46.
Rg2 {[%clk 0:00:09.5]} 46... Ke8 {[%clk 0:00:15.2]} 47. Rg8+ {[%clk 0:00:07.7]}
47... Kd7 {[%clk 0:00:15.7]} 48. Rg7+ {[%clk 0:00:07.9]} 48... Kd8 {[%clk
0:00:15.9]} 49. Rxb7 {[%clk 0:00:02.6]} 49... Qc1+ {[%clk 0:00:16.5]} 50. Kg2
{[%clk 0:00:03]} 50... Qxc2+ {[%clk 0:00:17.2]} 51. Kg3 {[%clk 0:00:03.4]} 51...
Qd2 {[%clk 0:00:17.7]} 52. h4 {[%clk 0:00:02.7]} 52... Qf4+ {[%clk 0:00:17.7]}
53. Kf2 {[%clk 0:00:03]} 53... Qd2+ {[%clk 0:00:17.7]} 54. Kg3 {[%clk
0:00:03.9]} 54... Qe1+ {[%clk 0:00:17.8]} 55. Kg2 {[%clk 0:00:04.2]} 55... Qe2+
{[%clk 0:00:17]} 56. Kg3 {[%clk 0:00:05.1]} 56... Kc8 {[%clk 0:00:16.8]} 57. Rf7
{[%clk 0:00:04.8]} 57... Qe1+ {[%clk 0:00:15.7]} 58. Kg2 {[%clk 0:00:05.7]}
58... Qe2+ {[%clk 0:00:16.4]} 59. Kg3 {[%clk 0:00:06.1]} 59... Qe1+ {[%clk
0:00:17]} 60. Kg2 {[%clk 0:00:06.6]} 60... Qd2+ {[%clk 0:00:14.9]} 61. Kg3
{[%clk 0:00:07.5]} 61... Qf4+ {[%clk 0:00:14.8]} 62. Kf2 {[%clk 0:00:07.9]}
62... Qh2+ {[%clk 0:00:13.7]} 63. Kf1 {[%clk 0:00:07.7]} 63... Qb2 {[%clk
0:00:13.5]} 64. Rxf6 {[%clk 0:00:07.4]} 64... Qxb3 {[%clk 0:00:13.7]} 65. Re6
{[%clk 0:00:07.1]} 65... Qxe6 {[%clk 0:00:12.7]} 66. Ng7 {[%clk 0:00:06.5]}
66... Qh3+ {[%clk 0:00:12.2]} 67. Ke2 {[%clk 0:00:06.7]} 67... Qxh4 {[%clk
0:00:12.9]} 68. Nf5 {[%clk 0:00:06.3]} 68... Qh2+ {[%clk 0:00:12]} 69. Ke1
{[%clk 0:00:06.4]} 69... Qf4 {[%clk 0:00:12.7]} 70. Nd6+ {[%clk 0:00:06.4]}
70... Kc7 {[%clk 0:00:13.2]} 71. Nf5 {[%clk 0:00:06.9]} 71... Qc1+ {[%clk
0:00:12.7]} 72. Kf2 {[%clk 0:00:07.2]} 72... Qb2+ {[%clk 0:00:13]} 73. Kg3
{[%clk 0:00:07.5]} 73... Qa1 {[%clk 0:00:13.4]} 74. Kh4 {[%clk 0:00:07.7]} 74...
Qxa4 {[%clk 0:00:13.6]} 75. Kxh5 {[%clk 0:00:08.1]} 75... Qe8+ {[%clk 0:00:14]}
76. Kg5 {[%clk 0:00:08.2]} 76... a4 {[%clk 0:00:14.7]} 77. Kf6 {[%clk
0:00:05.9]} 77... a3 {[%clk 0:00:14.2]} 78. Bd5 {[%clk 0:00:05.8]} 78... Qd8+
{[%clk 0:00:13.6]} 79. Kxe5 {[%clk 0:00:06.2]} 79... Qxd5+ {[%clk 0:00:13.1]}
80. Kxd5 {[%clk 0:00:04.5]} 80... a2 {[%clk 0:00:13.8]} 81. Nxd4 {[%clk
0:00:03.7]} 81... a1=Q {[%clk 0:00:13.8]} 82. f4 {[%clk 0:00:03.2]} 82... Qa5+
{[%clk 0:00:12.3]} 83. Ke4 {[%clk 0:00:03.6]} 83... Kd6 {[%clk 0:00:11.8]} 84.
Nf3 {[%clk 0:00:02.1]} 84... Qd5+ {[%clk 0:00:11.2]} 85. Ke3 {[%clk 0:00:02.6]}
85... Ke6 {[%clk 0:00:10.9]} 86. Ne5 {[%clk 0:00:02.3]} 86... Kf5 {[%clk
0:00:09.9]} 87. Nf3 {[%clk 0:00:02.6]} 87... Qc5+ {[%clk 0:00:09.6]} 88. Nd4+
{[%clk 0:00:01.2]} 88... Kf6 {[%clk 0:00:09.9]} 89. Ke4 {[%clk 0:00:02.1]} 89...
Qc1 {[%clk 0:00:09.8]} 90. Nf3 {[%clk 0:00:02.2]} 90... Qc2 {[%clk 0:00:09.5]}
91. Ne5 {[%clk 0:00:02]} 91... Qe2+ {[%clk 0:00:09]} 92. Kd4 {[%clk 0:00:01.8]}
92... Kf5 {[%clk 0:00:08.9]} 93. Nc4 {[%clk 0:00:01.5]} 93... Qf2+ {[%clk
0:00:08.9]} 94. Kc3 {[%clk 0:00:01.6]} 94... Qc5 {[%clk 0:00:08.2]} 0-1

[Event "Early-Titled-Tuesday-Blitz-April-02-2024"]
[Site "Chess.com"]
[Date "2024.04.02"]
[Round "9"]
[White "Binary010"]
[Black "MasterKroket"]
[Result "1/2-1/2"]
[WhiteElo "2774"]
[BlackElo "2575"]
[TimeControl "180+1"]
[EndTime "9:48:17 PDT"]
[Termination "Game drawn by 50-move rule"]

1. d4 {[%clk 0:03:00.9]} 1... Nf6 {[%clk 0:02:57]} 2. c4 {[%clk 0:03:01.1]} 2...
g6 {[%clk 0:02:56.4]} 3. Nc3 {[%clk 0:02:57.1]} 3... Bg7 {[%clk 0:02:55.6]} 4.
g3 {[%clk 0:02:57.3]} 4... O-O {[%clk 0:02:54.6]} 5. Bg2 {[%clk 0:02:57.6]} 5...
d6 {[%clk 0:02:51.6]} 6. Nf3 {[%clk 0:02:57.6]} 6... c6 {[%clk 0:02:50.5]} 7.
O-O {[%clk 0:02:57.6]} 7... Nbd7 {[%clk 0:02:50.5]} 8. e4 {[%clk 0:02:56.6]}
8... e5 {[%clk 0:02:50.6]} 9. h3 {[%clk 0:02:56.5]} 9... Re8 {[%clk 0:02:46]}
10. Re1 {[%clk 0:02:56]} 10... a6 {[%clk 0:02:32.4]} 11. a4 {[%clk 0:02:50.4]}
11... a5 {[%clk 0:02:26.4]} 12. d5 {[%clk 0:02:41.8]} 12... Nc5 {[%clk
0:02:19.2]} 13. Qc2 {[%clk 0:02:29.6]} 13... Nfd7 {[%clk 0:02:17.5]} 14. Bg5
{[%clk 0:02:27]} 14... f6 {[%clk 0:02:13.6]} 15. Be3 {[%clk 0:02:26.2]} 15...
Na6 {[%clk 0:02:08.3]} 16. Rad1 {[%clk 0:02:23.7]} 16... Qc7 {[%clk 0:02:07]}
17. dxc6 {[%clk 0:02:12.5]} 17... bxc6 {[%clk 0:02:06.8]} 18. Qd2 {[%clk
0:02:12.6]} 18... Bf8 {[%clk 0:02:06]} 19. Bh6 {[%clk 0:02:12.9]} 19... Bxh6
{[%clk 0:01:59.6]} 20. Qxh6 {[%clk 0:02:13.8]} 20... Ndc5 {[%clk 0:01:49.6]} 21.
h4 {[%clk 0:02:03.7]} 21... Rd8 {[%clk 0:01:44.4]} 22. h5 {[%clk 0:02:00]} 22...
Qg7 {[%clk 0:01:41.4]} 23. Qe3 {[%clk 0:01:57.3]} 23... Be6 {[%clk 0:01:37]} 24.
h6 {[%clk 0:01:48.6]} 24... Qb7 {[%clk 0:01:29.6]} 25. Qe2 {[%clk 0:01:41.7]}
25... Rab8 {[%clk 0:01:28.5]} 26. Rb1 {[%clk 0:01:40.8]} 26... Qb4 {[%clk
0:01:14.5]} 27. Nd2 {[%clk 0:01:40]} 27... Nxa4 {[%clk 0:01:07.4]} 28. Nxa4
{[%clk 0:01:39.9]} 28... Qxa4 {[%clk 0:01:07.8]} 29. Qf3 {[%clk 0:01:39.8]}
29... Rf8 {[%clk 0:01:06.5]} 30. Red1 {[%clk 0:01:32.3]} 30... Nc5 {[%clk
0:00:58.1]} 31. Nf1 {[%clk 0:01:17.4]} 31... Rbd8 {[%clk 0:00:48.7]} 32. b3
{[%clk 0:01:15.2]} 32... Qb4 {[%clk 0:00:44.9]} 33. Ne3 {[%clk 0:01:14.8]} 33...
Rd7 {[%clk 0:00:30.2]} 34. Nc2 {[%clk 0:01:10.6]} 34... Qb6 {[%clk 0:00:28]} 35.
Qc3 {[%clk 0:01:06.7]} 35... Rb8 {[%clk 0:00:26.9]} 36. b4 {[%clk 0:01:02.3]}
36... axb4 {[%clk 0:00:25.3]} 37. Rxb4 {[%clk 0:00:51.5]} 37... Qc7 {[%clk
0:00:25.5]} 38. Rxb8+ {[%clk 0:00:51.6]} 38... Qxb8 {[%clk 0:00:26.4]} 39. Nb4
{[%clk 0:00:51.8]} 39... Qb7 {[%clk 0:00:22.6]} 40. Ra1 {[%clk 0:00:51.1]} 40...
Kf7 {[%clk 0:00:21.6]} 41. Nc2 {[%clk 0:00:24.5]} 41... Rd8 {[%clk 0:00:20]} 42.
Qb4 {[%clk 0:00:21.9]} 42... Qxb4 {[%clk 0:00:19.4]} 43. Nxb4 {[%clk 0:00:22.8]}
43... Bd7 {[%clk 0:00:18.1]} 44. Ra7 {[%clk 0:00:22.4]} 44... Ke6 {[%clk
0:00:18.1]} 45. Bh3+ {[%clk 0:00:17.7]} 45... f5 {[%clk 0:00:18.6]} 46. exf5+
{[%clk 0:00:18.4]} 46... gxf5 {[%clk 0:00:18.8]} 47. Bg2 {[%clk 0:00:19.3]}
47... e4 {[%clk 0:00:18.4]} 48. Nc2 {[%clk 0:00:19.6]} 48... Ke5 {[%clk
0:00:18]} 49. f4+ {[%clk 0:00:17.3]} 49... exf3 {[%clk 0:00:17.6]} 50. Bxf3
{[%clk 0:00:17.7]} 50... Ne4 {[%clk 0:00:18.3]} 51. Nb4 {[%clk 0:00:09.5]} 51...
d5 {[%clk 0:00:13.7]} 52. cxd5 {[%clk 0:00:09.4]} 52... cxd5 {[%clk 0:00:14.1]}
53. Kg2 {[%clk 0:00:06.8]} 53... Rg8 {[%clk 0:00:10.8]} 54. Bxe4 {[%clk
0:00:05.3]} 54... dxe4 {[%clk 0:00:09.7]} 55. Rxd7 {[%clk 0:00:05.9]} 55... f4
{[%clk 0:00:10.4]} 56. Re7+ {[%clk 0:00:04.6]} 56... Kd4 {[%clk 0:00:09.5]} 57.
Nc6+ {[%clk 0:00:02.9]} 57... Ke3 {[%clk 0:00:09.2]} 58. Rxh7 {[%clk 0:00:01.6]}
58... Rxg3+ {[%clk 0:00:09.6]} 59. Kh2 {[%clk 0:00:02.2]} 59... Rg5 {[%clk
0:00:08.7]} 60. Re7 {[%clk 0:00:01.9]} 60... Rh5+ {[%clk 0:00:08.8]} 61. Kg2
{[%clk 0:00:02.6]} 61... f3+ {[%clk 0:00:08.3]} 62. Kg3 {[%clk 0:00:02.8]} 62...
Rxh6 {[%clk 0:00:08.7]} 63. Ne5 {[%clk 0:00:02.8]} 63... Rh5 {[%clk 0:00:07.4]}
64. Ng4+ {[%clk 0:00:03.7]} 64... Kd3 {[%clk 0:00:06.6]} 65. Nf2+ {[%clk
0:00:03.8]} 65... Ke3 {[%clk 0:00:06.4]} 66. Rxe4+ {[%clk 0:00:03.9]} 66... Kd2
{[%clk 0:00:05.4]} 67. Kxf3 {[%clk 0:00:04.3]} 67... Rf5+ {[%clk 0:00:05]} 68.
Kg3 {[%clk 0:00:04.9]} 68... Rf8 {[%clk 0:00:05.1]} 69. Ng4 {[%clk 0:00:05.1]}
69... Kc3 {[%clk 0:00:04.8]} 70. Re5 {[%clk 0:00:04.7]} 70... Kd4 {[%clk
0:00:04.7]} 71. Re7 {[%clk 0:00:03.7]} 71... Kc4 {[%clk 0:00:04.7]} 72. Ne5+
{[%clk 0:00:03.5]} 72... Kd5 {[%clk 0:00:04.9]} 73. Ng6 {[%clk 0:00:03.8]} 73...
Rf6 {[%clk 0:00:04.4]} 74. Nf4+ {[%clk 0:00:04]} 74... Kc4 {[%clk 0:00:05]} 75.
Kf3 {[%clk 0:00:04]} 75... Rd6 {[%clk 0:00:04.2]} 76. Ke3 {[%clk 0:00:03.3]}
76... Rd8 {[%clk 0:00:03.6]} 77. Rc7+ {[%clk 0:00:03.5]} 77... Kb5 {[%clk
0:00:02.9]} 78. Ke4 {[%clk 0:00:03.9]} 78... Kb6 {[%clk 0:00:03.1]} 79. Rc1
{[%clk 0:00:04.1]} 79... Kb5 {[%clk 0:00:03.6]} 80. Nd5 {[%clk 0:00:04.3]} 80...
Rh8 {[%clk 0:00:03]} 81. Ke5 {[%clk 0:00:02.3]} 81... Rh5+ {[%clk 0:00:03.1]}
82. Ke6 {[%clk 0:00:02.7]} 82... Rh6+ {[%clk 0:00:03.6]} 83. Nf6 {[%clk
0:00:03.2]} 83... Rh2 {[%clk 0:00:03.5]} 84. Ke5 {[%clk 0:00:03.3]} 84... Kb4
{[%clk 0:00:03.7]} 85. Nd5+ {[%clk 0:00:02.2]} 85... Kb5 {[%clk 0:00:03.6]} 86.
Rc3 {[%clk 0:00:01.6]} 86... Rh5+ {[%clk 0:00:03.1]} 87. Kd6 {[%clk 0:00:02.3]}
87... Rh6+ {[%clk 0:00:03.2]} 88. Kd7 {[%clk 0:00:02.9]} 88... Rh7+ {[%clk
0:00:03.5]} 89. Ke6 {[%clk 0:00:03.3]} 89... Rh6+ {[%clk 0:00:03.9]} 90. Nf6
{[%clk 0:00:04]} 90... Rh1 {[%clk 0:00:03.8]} 91. Rc8 {[%clk 0:00:04.4]} 91...
Kb4 {[%clk 0:00:04]} 92. Ke5 {[%clk 0:00:04]} 92... Kb3 {[%clk 0:00:04.1]} 93.
Ne4 {[%clk 0:00:03.4]} 93... Rh7 {[%clk 0:00:03.7]} 94. Kd5 {[%clk 0:00:02.5]}
94... Rd7+ {[%clk 0:00:03.4]} 95. Nd6 {[%clk 0:00:03.3]} 95... Rh7 {[%clk
0:00:02.8]} 96. Rc6 {[%clk 0:00:03.8]} 96... Kb2 {[%clk 0:00:03.1]} 97. Kd4
{[%clk 0:00:04.2]} 97... Rh3 {[%clk 0:00:03.1]} 98. Ne4 {[%clk 0:00:03.5]} 98...
Rh4 {[%clk 0:00:02.4]} 99. Rc4 {[%clk 0:00:01.8]} 99... Kb3 {[%clk 0:00:02.3]}
100. Rc3+ {[%clk 0:00:02]} 100... Kb2 {[%clk 0:00:02.6]} 101. Rc4 {[%clk
0:00:02.1]} 101... Kb3 {[%clk 0:00:02]} 102. Rc8 {[%clk 0:00:02.8]} 102... Kb2
{[%clk 0:00:02]} 103. Kd3 {[%clk 0:00:02.3]} 103... Rh3+ {[%clk 0:00:01.9]} 104.
Kc4 {[%clk 0:00:03]} 104... Rh4 {[%clk 0:00:02.2]} 105. Kd4 {[%clk 0:00:03.2]}
105... Rh3 {[%clk 0:00:02.2]} 106. Rc7 {[%clk 0:00:03.7]} 106... Kb3 {[%clk
0:00:02.5]} 107. Rb7+ {[%clk 0:00:03.7]} 107... Kc2 {[%clk 0:00:03.1]} 108. Ra7
{[%clk 0:00:04.3]} 108... Rh4 {[%clk 0:00:02.9]} 109. Ra2+ {[%clk 0:00:04.2]}
109... Kb3 {[%clk 0:00:03.2]} 110. Re2 {[%clk 0:00:04.7]} 110... Rg4 {[%clk
0:00:03.3]} 111. Kd3 {[%clk 0:00:04.2]} 111... Rh4 {[%clk 0:00:03.2]} 112. Re1
{[%clk 0:00:03.1]} 112... Rh3+ {[%clk 0:00:03.1]} 113. Kd4 {[%clk 0:00:03.8]}
113... Rh4 {[%clk 0:00:03.8]} 114. Rc1 {[%clk 0:00:02.7]} 114... Kb2 {[%clk
0:00:03.8]} 115. Rc8 {[%clk 0:00:01.9]} 115... Kb3 {[%clk 0:00:03.8]} 116. Kd3
{[%clk 0:00:01.7]} 116... Kb4 {[%clk 0:00:03.6]} 117. Rb8+ {[%clk 0:00:01.8]}
1/2-1/2

[Event "Early-Titled-Tuesday-Blitz-April-02-2024"]
[Site "Chess.com"]
[Date "2024.04.02"]
[Round "10"]
[White "TrompeterImEther"]
[Black "Kildepiotr"]
[Result "1-0"]
[WhiteElo "2578"]
[BlackElo "2723"]
[TimeControl "180+1"]
[EndTime "9:50:54 PDT"]
[Termination "TrompeterImEther won by resignation"]

1. e4 {[%clk 0:03:00.9]} 1... g6 {[%clk 0:02:58]} 2. d4 {[%clk 0:02:58.4]} 2...
Bg7 {[%clk 0:02:58.5]} 3. Nc3 {[%clk 0:02:57]} 3... c6 {[%clk 0:02:58.7]} 4. Be3
{[%clk 0:02:57.6]} 4... d5 {[%clk 0:02:58.5]} 5. e5 {[%clk 0:02:56.4]} 5... Nh6
{[%clk 0:02:58.2]} 6. Qd2 {[%clk 0:02:48.3]} 6... Nf5 {[%clk 0:02:57.6]} 7. Bf4
{[%clk 0:02:48.4]} 7... c5 {[%clk 0:02:58]} 8. dxc5 {[%clk 0:02:43.5]} 8... d4
{[%clk 0:02:58.1]} 9. Ne4 {[%clk 0:02:39.2]} 9... Qd5 {[%clk 0:02:58.1]} 10. Bd3
{[%clk 0:02:39.1]} 10... Bxe5 {[%clk 0:02:48.3]} 11. c4 {[%clk 0:02:34.3]} 11...
dxc3 {[%clk 0:02:46.2]} 12. Bb5+ {[%clk 0:02:34.4]} 12... Nc6 {[%clk 0:02:36.3]}
13. Qxd5 {[%clk 0:02:33]} 13... cxb2 {[%clk 0:02:36.6]} 14. Bxe5 {[%clk
0:02:30.2]} 14... Be6 {[%clk 0:02:32.4]} 15. Bxc6+ {[%clk 0:02:27.9]} 15... Kf8
{[%clk 0:02:32.3]} 16. Qd2 {[%clk 0:02:24.1]} 1-0

[Event "Early-Titled-Tuesday-Blitz-April-02-2024"]
[Site "Chess.com"]
[Date "2024.04.02"]
[Round "10"]
[White "Korchmar_Vasiliy"]
[Black "dropstoneDP"]
[Result "0-1"]
[WhiteElo "2731"]
[BlackElo "2986"]
[TimeControl "180+1"]
[EndTime "9:51:50 PDT"]
[Termination "dropstoneDP won by resignation"]

1. e4 {[%clk 0:03:00.9]} 1... e5 {[%clk 0:02:59.4]} 2. Nf3 {[%clk 0:03:00.8]}
2... Nf6 {[%clk 0:03:00]} 3. Nxe5 {[%clk 0:03:00.4]} 3... d6 {[%clk 0:03:00.2]}
4. Nf3 {[%clk 0:03:01.1]} 4... Nxe4 {[%clk 0:03:00.4]} 5. Nc3 {[%clk 0:03:01.7]}
5... Nxc3 {[%clk 0:03:00.4]} 6. dxc3 {[%clk 0:03:02.6]} 6... Be7 {[%clk
0:03:00.9]} 7. Bf4 {[%clk 0:03:03.2]} 7... O-O {[%clk 0:03:01]} 8. Qd2 {[%clk
0:03:03.8]} 8... Nd7 {[%clk 0:03:00.4]} 9. O-O-O {[%clk 0:03:03.9]} 9... Re8
{[%clk 0:03:01]} 10. h4 {[%clk 0:03:04.1]} 10... h6 {[%clk 0:03:01.3]} 11. Kb1
{[%clk 0:02:53.2]} 11... Nc5 {[%clk 0:02:53]} 12. Nd4 {[%clk 0:02:49.7]} 12...
Ne4 {[%clk 0:02:40.9]} 13. Qe1 {[%clk 0:02:40.9]} 13... Bxh4 {[%clk 0:02:41]}
14. Be2 {[%clk 0:02:04]} 14... Bxf2 {[%clk 0:02:19.4]} 15. Qf1 {[%clk
0:02:04.1]} 15... Qf6 {[%clk 0:02:19.8]} 16. Bc1 {[%clk 0:01:43.8]} 16... Ng3
{[%clk 0:02:19]} 0-1

[Event "Early-Titled-Tuesday-Blitz-April-02-2024"]
[Site "Chess.com"]
[Date "2024.04.02"]
[Round "10"]
[White "Fy_Rakotomaharo"]
[Black "stollenmonster"]
[Result "1-0"]
[WhiteElo "2718"]
[BlackElo "2883"]
[TimeControl "180+1"]
[EndTime "9:52:06 PDT"]
[Termination "Fy_Rakotomaharo won by resignation"]

1. e4 {[%clk 0:03:00.9]} 1... c5 {[%clk 0:02:59.9]} 2. Nf3 {[%clk 0:03:01.3]}
2... Nf6 {[%clk 0:03:00.5]} 3. e5 {[%clk 0:03:01.6]} 3... Nd5 {[%clk 0:03:00.7]}
4. Nc3 {[%clk 0:03:02.5]} 4... e6 {[%clk 0:03:01]} 5. Ne4 {[%clk 0:03:02.5]}
5... Nc6 {[%clk 0:03:01]} 6. c4 {[%clk 0:02:55.4]} 6... f5 {[%clk 0:03:00.8]} 7.
Nc3 {[%clk 0:02:54.2]} 7... Nde7 {[%clk 0:03:00.3]} 8. d4 {[%clk 0:02:02.7]}
8... cxd4 {[%clk 0:03:01.2]} 9. Nxd4 {[%clk 0:02:02.4]} 9... Nxe5 {[%clk
0:02:59.4]} 10. Be2 {[%clk 0:01:49.1]} 10... N7c6 {[%clk 0:02:58.1]} 11. O-O
{[%clk 0:01:46.8]} 11... Bc5 {[%clk 0:02:50.8]} 12. Be3 {[%clk 0:01:43.1]} 12...
Qe7 {[%clk 0:02:31.5]} 13. Nxf5 {[%clk 0:01:37]} 13... exf5 {[%clk 0:02:22.3]}
14. Nd5 {[%clk 0:01:37]} 14... Qd6 {[%clk 0:02:22.2]} 15. Bxc5 {[%clk
0:01:28.5]} 15... Qxc5 {[%clk 0:02:23.1]} 16. Nc7+ {[%clk 0:01:29]} 16... Kd8
{[%clk 0:02:21.4]} 17. Ne6+ {[%clk 0:01:28.5]} 1-0

[Event "Early-Titled-Tuesday-Blitz-April-02-2024"]
[Site "Chess.com"]
[Date "2024.04.02"]
[Round "10"]
[White "RantomOpening"]
[Black "wqws"]
[Result "0-1"]
[WhiteElo "2557"]
[BlackElo "2718"]
[TimeControl "180+1"]
[EndTime "9:53:08 PDT"]
[Termination "wqws won by checkmate"]

1. c4 {[%clk 0:03:00.9]} 1... Nf6 {[%clk 0:02:57.6]} 2. Nf3 {[%clk 0:03:00]}
2... g6 {[%clk 0:02:58.5]} 3. Nc3 {[%clk 0:03:00]} 3... Bg7 {[%clk 0:02:59.4]}
4. e4 {[%clk 0:03:00.2]} 4... O-O {[%clk 0:03:00.3]} 5. d4 {[%clk 0:03:00.6]}
5... d6 {[%clk 0:03:00.7]} 6. Be2 {[%clk 0:03:01.1]} 6... e5 {[%clk 0:03:01]} 7.
Be3 {[%clk 0:03:01.3]} 7... Nbd7 {[%clk 0:02:59.2]} 8. O-O {[%clk 0:03:01.1]}
8... exd4 {[%clk 0:02:57.3]} 9. Nxd4 {[%clk 0:03:01.2]} 9... Re8 {[%clk
0:02:58]} 10. f3 {[%clk 0:03:01]} 10... Nc5 {[%clk 0:02:55.2]} 11. Qd2 {[%clk
0:03:00.4]} 11... h5 {[%clk 0:02:55]} 12. Rad1 {[%clk 0:03:00.1]} 12... Bd7
{[%clk 0:02:55.5]} 13. Ndb5 {[%clk 0:02:56.1]} 13... a6 {[%clk 0:02:54.7]} 14.
Na3 {[%clk 0:02:54.5]} 14... Bc6 {[%clk 0:02:52.6]} 15. Nc2 {[%clk 0:02:52.5]}
15... Ne6 {[%clk 0:02:52.2]} 16. Nd5 {[%clk 0:02:51.4]} 16... Bd7 {[%clk
0:02:49.7]} 17. b3 {[%clk 0:02:50.1]} 17... Nxd5 {[%clk 0:02:48.8]} 18. cxd5
{[%clk 0:02:49.2]} 18... Nc5 {[%clk 0:02:48.9]} 19. Bd4 {[%clk 0:02:48.4]} 19...
a5 {[%clk 0:02:44.2]} 20. Bxg7 {[%clk 0:02:45.1]} 20... Kxg7 {[%clk 0:02:44.3]}
21. Ne1 {[%clk 0:02:38]} 21... Qf6 {[%clk 0:02:43]} 22. Nd3 {[%clk 0:02:35.9]}
22... Qd4+ {[%clk 0:02:40.2]} 23. Kh1 {[%clk 0:02:35.4]} 23... Nxd3 {[%clk
0:02:40.1]} 24. Qxd3 {[%clk 0:02:35.1]} 24... Qxd3 {[%clk 0:02:40.4]} 25. Bxd3
{[%clk 0:02:35.2]} 25... a4 {[%clk 0:02:40.9]} 26. b4 {[%clk 0:02:33.3]} 26...
Kf6 {[%clk 0:02:39.1]} 27. f4 {[%clk 0:02:32.8]} 27... Rec8 {[%clk 0:02:37.5]}
28. e5+ {[%clk 0:02:31.2]} 28... dxe5 {[%clk 0:02:36.7]} 29. fxe5+ {[%clk
0:02:32.1]} 29... Kxe5 {[%clk 0:02:37.6]} 30. Rxf7 {[%clk 0:02:30.4]} 30... Bf5
{[%clk 0:02:37.7]} 31. Bxf5 {[%clk 0:02:27.7]} 31... gxf5 {[%clk 0:02:38.6]} 32.
Re1+ {[%clk 0:02:27.4]} 32... Kxd5 {[%clk 0:02:38.7]} 33. Rxf5+ {[%clk
0:02:24.7]} 33... Kc4 {[%clk 0:02:37.1]} 34. a3 {[%clk 0:02:12.9]} 34... Rd8
{[%clk 0:02:31.2]} 35. Rxh5 {[%clk 0:02:05.9]} 35... Rd3 {[%clk 0:02:28.6]} 36.
Rc5+ {[%clk 0:02:03.3]} 36... Kb3 {[%clk 0:02:28.7]} 37. Rxc7 {[%clk 0:02:03.2]}
37... Kxa3 {[%clk 0:02:28.5]} 38. Rxb7 {[%clk 0:02:02.7]} 38... Kb3 {[%clk
0:02:25.2]} 39. Rb1+ {[%clk 0:01:56.5]} 39... Kc2 {[%clk 0:02:24.5]} 40. Ra1
{[%clk 0:01:51.9]} 40... a3 {[%clk 0:02:24.4]} 41. Rc7+ {[%clk 0:01:41.5]} 41...
Kb2 {[%clk 0:02:21.5]} 42. Re1 {[%clk 0:01:40.3]} 42... a2 {[%clk 0:02:20.8]}
43. Re2+ {[%clk 0:01:37.4]} 43... Kb3 {[%clk 0:02:18.9]} 44. Rxa2 {[%clk
0:01:36.1]} 44... Rd1# {[%clk 0:02:16.3]} 0-1